bitfinex-derivatives/quotes_BTCF0:USTF0_20250406
["timestamp","ask_amount","ask_price","bid_price","bid_amount"]
[1743911384954,0.0325,83336.0,83335.0,0.1885355]
[1743911385442,0.0325,83336.0,83335.0,0.1945355]
[1743911386044,0.0325,83336.0,83335.0,0.19436525]
[1743911387655,0.0325,83336.0,83335.0,0.1943607]
[1743911387954,0.0325,83336.0,83335.0,0.19436066]
[1743911388656,0.0840383,83327.0,83326.0,0.0842194]
[1743911388853,0.4448383,83327.0,83326.0,0.0001801]
[1743911390255,0.44571831,83327.0,83326.0,0.0010601]
[1743911390755,0.44971831,83327.0,83326.0,0.0850994]
[1743911391256,0.50551831,83327.0,83326.0,0.0850994]
[1743911391944,0.56901831,83327.0,83326.0,0.0850994]
[1743911392147,0.56901831,83327.0,83326.0,0.09430415]
[1743911394955,0.56901831,83327.0,83326.0,0.12430415]
[1743911399356,0.56901831,83327.0,83326.0,0.04026485]
[1743911399557,0.56901831,83327.0,83326.0,0.00938485]
[1743911400661,0.56901831,83327.0,83326.0,0.02752612]
[1743911401051,0.56901831,83327.0,83326.0,0.0450194]
[1743911401659,0.56901831,83327.0,83326.0,0.0458994]
[1743911402050,0.56901831,83327.0,83326.0,0.0450194]
[1743911402252,0.56901831,83327.0,83326.0,0.0459794]
[1743911402564,0.56901831,83327.0,83326.0,0.0450194]
[1743911402749,0.56901831,83327.0,83326.0,0.0458994]
[1743911402953,0.56901831,83327.0,83326.0,0.1290587]
[1743911403254,0.51821831,83327.0,83326.0,0.1614387]
[1743911403458,0.56901831,83327.0,83326.0,0.16156205]
[1743911403657,0.51821831,83327.0,83326.0,0.16156205]
[1743911403856,0.56901831,83327.0,83326.0,0.16156205]
[1743911404062,0.51821831,83327.0,83326.0,0.16156205]
[1743911404365,0.56901831,83327.0,83326.0,0.16156205]
[1743911407657,0.56901831,83327.0,83326.0,0.19346205]
[1743911408669,0.56901831,83327.0,83326.0,0.19351754]
[1743911408873,0.56841831,83327.0,83326.0,0.19351754]
[1743911409065,0.53621831,83327.0,83326.0,0.19351754]
[1743911409368,0.50551831,83327.0,83326.0,0.19351754]
[1743911414372,0.50551831,83327.0,83326.0,0.19344427]
[1743911414969,0.50351831,83327.0,83326.0,0.19344427]
[1743911415767,0.49951831,83327.0,83326.0,0.19344427]
[1743911415966,0.50251831,83327.0,83326.0,0.19344427]
[1743911416380,0.50151831,83327.0,83326.0,0.19343748]
[1743911416571,0.49851831,83327.0,83326.0,0.19343748]
[1743911416777,0.41748001,83327.0,83326.0,0.19343748]
[1743911417574,0.00588001,83327.0,83326.0,0.19343748]
[1743911417775,0.005,83327.0,83326.0,0.19343748]
[1743911418368,0.0508,83335.0,83334.0,0.0840312]
[1743911418668,0.0508,83335.0,83334.0,0.10219125]
[1743911418869,0.3608,83336.0,83335.0,0.0840302]
[1743911419171,0.0004,83344.0,83342.0,0.0840231]
[1743911419365,0.0004,83344.0,83343.0,0.19748215]
[1743911420073,0.00124,83344.0,83343.0,0.21581543]
[1743911420677,0.00524,83344.0,83343.0,0.21581543]
[1743911425264,0.00524,83344.0,83343.0,0.21624581]
[1743911428278,0.00524,83344.0,83343.0,0.57704581]
[1743911428478,0.0044,83344.0,83343.0,0.93704581]
[1743911429175,0.0044,83344.0,83343.0,0.78704581]
[1743911429576,0.0044,83344.0,83343.0,0.57704581]
[1743911432082,0.0034,83344.0,83343.0,0.77644581]
[1743911432379,0.0054,83344.0,83343.0,0.77644581]
[1743911434182,0.0508,83358.0,83357.0,0.084008]
[1743911434375,0.11688001,83358.0,83357.0,0.10347843]
[1743911434679,0.11688001,83358.0,83357.0,0.10344943]
[1743911435382,0.11688001,83358.0,83357.0,0.12094271]
[1743911435580,0.03418001,83358.0,83357.0,0.12094271]
[1743911435874,0.03418001,83358.0,83357.0,0.13294271]
[1743911436282,0.03418001,83358.0,83357.0,0.16573455]
[1743911436683,0.00088001,83358.0,83357.0,0.16573455]
[1743911436982,0.0632,83363.0,83362.0,0.084003]
[1743911437180,0.0632,83363.0,83362.0,0.12004955]
[1743911439485,0.0632,83363.0,83362.0,0.13204955]
[1743911440370,0.06404,83363.0,83362.0,0.13288955]
[1743911445287,0.06404,83363.0,83362.0,0.13289918]
[1743911446087,0.06404,83363.0,83362.0,0.12689918]
[1743911446287,0.06504,83363.0,83362.0,0.12688391]
[1743911446479,0.06504,83363.0,83362.0,0.12088391]
[1743911447085,0.06504,83363.0,83362.0,0.1209363]
[1743911448183,0.149042,83363.0,83362.0,0.0369333]
[1743911448390,0.149042,83363.0,83362.0,0.0360933]
[1743911448781,0.084003,83362.0,83361.0,8e-05]
[1743911449086,0.084012,83353.0,83352.0,0.46749149]
[1743911449285,0.444812,83353.0,83352.0,0.46749149]
[1743911450091,0.508252,83353.0,83352.0,0.46833149]
[1743911450891,0.42424,83353.0,83352.0,0.46833149]
[1743911451085,0.508252,83353.0,83352.0,0.46833149]
[1743911451275,0.475,83353.0,83352.0,0.46833149]
[1743911451477,0.559012,83353.0,83352.0,0.46833149]
[1743911452286,0.559012,83353.0,83352.0,0.2528726]
[1743911458596,0.559012,83353.0,83352.0,0.1688606]
[1743911459095,0.55300956,83353.0,83352.0,0.1688606]
[1743911460787,0.55300956,83353.0,83352.0,0.2052565]
[1743911461189,0.55300956,83353.0,83352.0,0.20525591]
[1743911462895,0.198212,83353.0,83352.0,0.2052558]
[1743911463101,0.559012,83353.0,83352.0,0.2052558]
[1743911466000,0.527312,83353.0,83352.0,0.2052558]
[1743911466205,0.39254,83353.0,83352.0,0.2052558]
[1743911466409,0.4433,83353.0,83352.0,0.2373558]
[1743911466704,0.527312,83353.0,83352.0,0.2373558]
[1743911470710,0.496412,83353.0,83352.0,0.2373558]
[1743911471011,0.4124,83353.0,83352.0,0.2373558]
[1743911471813,0.4124,83353.0,83352.0,0.23720464]
[1743911472203,0.00084,83353.0,83352.0,0.23720433]
[1743911472405,0.05076,83356.0,83355.0,0.08401]
[1743911472611,0.05076,83356.0,83355.0,0.1025182]
[1743911472813,0.05076,83356.0,83355.0,0.1645182]
[1743911473112,0.4751046,83361.0,83360.0,0.084005]
[1743911473411,0.5571646,83361.0,83360.0,0.1025132]
[1743911473613,0.5571646,83361.0,83360.0,0.1639132]
[1743911474009,0.5571646,83361.0,83360.0,0.16382274]
[1743911474304,0.5571646,83361.0,83360.0,0.18155827]
[1743911474705,0.5571646,83361.0,83360.0,0.21345827]
[1743911475202,0.5580046,83361.0,83360.0,0.21429827]
[1743911475921,0.5267046,83361.0,83360.0,0.21429827]
[1743911476106,0.1659046,83361.0,83360.0,0.21429827]
[1743911476910,0.0819,83361.0,83360.0,0.21429827]
[1743911478516,0.165904,83361.0,83360.0,0.21429827]
[1743911478816,0.199104,83361.0,83360.0,0.21429827]
[1743911479018,0.1151,83361.0,83360.0,0.21429827]
[1743911479820,0.199104,83361.0,83360.0,0.21429827]
[1743911482006,0.165904,83361.0,83360.0,0.21429827]
[1743911482213,0.115144,83361.0,83360.0,0.21429827]
[1743911482420,0.0516,83361.0,83360.0,0.21429827]
[1743911482921,0.00084,83361.0,83360.0,0.21429827]
[1743911484212,0.084844,83361.0,83360.0,0.21429827]
[1743911484416,0.07884247,83361.0,83360.0,0.21429827]
[1743911485224,0.07884247,83361.0,83360.0,0.21424778]
[1743911488726,0.3608,83362.0,83361.0,0.084004]
[1743911488928,0.3608,83362.0,83361.0,0.16615125]
[1743911489330,0.3608,83362.0,83361.0,0.18388678]
[1743911493924,0.1347623,83363.0,83362.0,0.084003]
[1743911494128,0.05076,83363.0,83362.0,0.16683025]
[1743911494434,0.05076,83363.0,83362.0,0.18456578]
[1743911494632,0.134762,83363.0,83362.0,0.18456578]
[1743911495734,0.166662,83363.0,83362.0,0.18456578]
[1743911496038,0.166662,83363.0,83362.0,0.18455834]
[1743911497925,0.197962,83363.0,83362.0,0.18455834]
[1743911498627,0.197962,83363.0,83362.0,0.15265834]
[1743911499830,0.197962,83363.0,83362.0,0.15268849]
[1743911500031,0.147202,83363.0,83362.0,0.15268849]
[1743911500233,0.197962,83363.0,83362.0,0.15268849]
[1743911502736,0.197962,83363.0,83362.0,0.36824687]
[1743911503134,0.197962,83363.0,83362.0,0.36809935]
[1743911507140,0.197962,83363.0,83362.0,0.36812134]
[1743911507342,0.197962,83363.0,83362.0,0.36812169]
[1743911508943,0.197962,83363.0,83362.0,0.3681209]
[1743911509733,0.1919603,83363.0,83362.0,0.3681209]
[1743911511745,0.1600603,83363.0,83362.0,0.3681209]
[1743911512040,0.3608,83364.0,83363.0,0.084002]
[1743911512343,0.41156,83364.0,83363.0,0.16602599]
[1743911512746,0.41156,83364.0,83363.0,0.18376152]
[1743911512947,0.40255789,83364.0,83363.0,0.18376152]
[1743911514141,0.35179789,83364.0,83363.0,0.18376152]
[1743911514341,0.40255789,83364.0,83363.0,0.18376152]
[1743911514939,0.35179789,83364.0,83363.0,0.18376152]
[1743911515139,0.40255789,83364.0,83363.0,0.18376152]
[1743911516341,0.51053995,83364.0,83363.0,0.18376152]
[1743911517552,0.51053995,83364.0,83363.0,0.18346971]
[1743911517749,0.45977995,83364.0,83363.0,0.18346971]
[1743911517952,0.10798206,83364.0,83363.0,0.18346971]
[1743911518964,0.10798206,83365.0,83364.0,0.084001]
[1743911519253,0.10798206,83365.0,83364.0,0.16963318]
[1743911519756,0.10798206,83365.0,83364.0,0.18736871]
[1743911520060,0.10798206,83365.0,83364.0,0.18733914]
[1743911522455,0.062,83369.0,83364.0,0.18733914]
[1743911522456,0.062,83369.0,83368.0,0.0839969]
[1743911522652,0.062,83369.0,83368.0,0.12079504]
[1743911522852,0.062,83369.0,83368.0,0.18339504]
[1743911523452,0.062,83369.0,83368.0,0.21599504]
[1743911524560,0.1459959,83369.0,83368.0,0.18339504]
[1743911525451,0.13999495,83369.0,83368.0,0.16099533]
[1743911528056,0.10798206,83371.0,83370.0,0.0839949]
[1743911528260,0.15874206,83371.0,83370.0,0.10301751]
[1743911528447,0.10798206,83371.0,83370.0,0.10301751]
[1743911528653,0.15874206,83371.0,83370.0,0.16691751]
[1743911528862,0.15874206,83371.0,83370.0,0.18465304]
[1743911529063,0.19204206,83371.0,83370.0,0.18465304]
[1743911530664,0.08406,83371.0,83370.0,0.18465304]
[1743911531750,0.14338835,83372.0,83371.0,0.0839939]
[1743911531956,0.14338835,83372.0,83371.0,0.16755651]
[1743911532366,0.14338835,83372.0,83371.0,0.18529204]
[1743911533765,0.51941525,83374.0,83373.0,0.0839919]
[1743911533964,0.51941525,83374.0,83373.0,0.11948837]
[1743911534167,0.51941525,83374.0,83373.0,0.12056837]
[1743911535558,0.58161525,83374.0,83373.0,0.12056837]
[1743911536062,0.58161525,83374.0,83373.0,0.12056719]
[1743911537063,0.47376,83374.0,83373.0,0.12056719]
[1743911540671,0.46775931,83374.0,83373.0,0.12056719]
[1743911541269,0.46775931,83374.0,83373.0,0.12057399]
[1743911541870,0.43555931,83374.0,83373.0,0.12057399]
[1743911543070,0.38479931,83374.0,83373.0,0.12057399]
[1743911543271,0.43555931,83374.0,83373.0,0.12057399]
[1743911544465,0.43555931,83374.0,83373.0,0.15107399]
[1743911544768,0.43555931,83374.0,83373.0,0.13330743]
[1743911544967,0.43555931,83374.0,83373.0,0.15110021]
[1743911545166,0.46675931,83374.0,83373.0,0.15110021]
[1743911545872,0.40555931,83374.0,83373.0,0.15110021]
[1743911546073,0.40555931,83374.0,83373.0,0.18430021]
[1743911547770,0.43615931,83374.0,83373.0,0.18430021]
[1743911550371,0.43615931,83374.0,83373.0,0.39975487]
[1743911554169,0.08136,83374.0,83373.0,0.39975487]
[1743911555174,0.11356,83374.0,83373.0,0.39975487]
[1743911556878,0.10755929,83374.0,83373.0,0.39975487]
[1743911561381,0.10755929,83374.0,83373.0,0.39983425]
[1743911561883,0.10755929,83374.0,83373.0,0.18437959]
[1743911566686,0.10755929,83374.0,83373.0,0.18433191]
[1743911568488,0.10755929,83374.0,83373.0,0.16650743]
[1743911568677,0.10755929,83374.0,83373.0,0.18433123]
[1743911571588,0.10755929,83374.0,83373.0,0.15113123]
[1743911571989,0.10155867,83374.0,83373.0,0.15113123]
[1743911576389,0.10155867,83374.0,83373.0,0.18213123]
[1743911577886,0.10155867,83374.0,83373.0,0.1820679]
[1743911578587,0.06935867,83374.0,83373.0,0.1820679]
[1743911579089,0.0306,83374.0,83373.0,0.1820679]
[1743911579485,0.0306,83374.0,83373.0,0.18210523]
[1743911580692,0.1467909,83374.0,83373.0,0.03661333]
[1743911580993,0.1773909,83374.0,83373.0,0.03661333]
[1743911581595,0.1773909,83374.0,83373.0,0.12060523]
[1743911582795,0.28537349,83374.0,83373.0,0.12060523]
[1743911583698,0.28537349,83374.0,83373.0,0.03661333]
[1743911586389,0.1773909,83374.0,83373.0,0.03661333]
[1743911586694,0.1773909,83374.0,83373.0,0.03553333]
[1743911587198,0.1773909,83374.0,83373.0,0.06793333]
[1743911588094,0.1773909,83374.0,83373.0,0.06800432]
[1743911588398,0.8989909,83374.0,83373.0,0.06800432]
[1743911588801,0.1773909,83374.0,83373.0,0.06800432]
[1743911589000,0.8989909,83374.0,83373.0,0.06912432]
[1743911589192,0.8989909,83374.0,83373.0,0.06800432]
[1743911589802,0.8989909,83374.0,83373.0,0.06799065]
[1743911590594,0.89959091,83374.0,83373.0,0.06799065]
[1743911593298,0.89959091,83374.0,83373.0,0.0680291]
[1743911595402,0.89959091,83374.0,83373.0,0.06803498]
[1743911604805,0.89959091,83374.0,83373.0,0.06793282]
[1743911606306,0.89959091,83374.0,83373.0,0.09873282]
[1743911606909,0.89959091,83374.0,83373.0,0.06793282]
[1743911608111,0.89959091,83374.0,83373.0,0.06786071]
[1743911609008,0.86899091,83374.0,83373.0,0.06786071]
[1743911609208,0.86899091,83374.0,83373.0,0.0678974]
[1743911610814,0.9273325,83374.0,83373.0,0.0678974]
[1743911613604,0.9273325,83374.0,83373.0,0.06789567]
[1743911613807,0.8951325,83374.0,83373.0,0.06789567]
[1743911614005,0.8951325,83374.0,83373.0,0.10049567]
[1743911614206,0.9458525,83374.0,83373.0,0.10049567]
[1743911617614,0.9772525,83374.0,83373.0,0.10049567]
[1743911618017,0.9772525,83374.0,83373.0,0.06789567]
[1743911618212,0.9772525,83374.0,83368.0,0.00910029]
[1743911618213,0.0419969,83372.0,83368.0,0.00910029]
[1743911618518,0.0839959,83369.0,83368.0,0.00112]
[1743911618704,0.0839969,83368.0,83367.0,8e-05]
[1743911618905,0.1153969,83368.0,83367.0,0.0012]
[1743911619120,0.1153969,83368.0,83367.0,8e-05]
[1743911619313,0.1153969,83368.0,83367.0,0.00116]
[1743911620715,0.1153969,83368.0,83367.0,8e-05]
[1743911620915,0.1477969,83368.0,83367.0,8e-05]
[1743911621716,0.1477969,83368.0,83367.0,0.00124]
[1743911622724,0.1477969,83368.0,83367.0,0.03374]
[1743911623025,0.1985169,83368.0,83367.0,0.03374]
[1743911623222,0.0839969,83368.0,83367.0,0.03374]
[1743911623425,0.1347169,83368.0,83367.0,0.1177379]
[1743911623827,0.0839969,83368.0,83367.0,0.1177379]
[1743911624122,0.1347169,83368.0,83367.0,0.1177379]
[1743911624422,0.0839959,83369.0,83368.0,0.1259949]
[1743911624611,0.1347159,83369.0,83368.0,0.1895749]
[1743911629115,0.1347159,83369.0,83368.0,0.19848475]
[1743911630125,0.1347159,83369.0,83368.0,0.21611349]
[1743911630323,0.1347159,83369.0,83368.0,0.23326322]
[1743911633621,0.1347159,83369.0,83368.0,0.23324642]
[1743911634033,0.24260477,83369.0,83368.0,0.23324642]
[1743911637231,0.24260477,83369.0,83368.0,0.23321608]
[1743911639135,0.24260477,83369.0,83368.0,0.23316189]
[1743911640233,0.60340477,83369.0,83368.0,0.23316189]
[1743911642235,0.60340477,83369.0,83368.0,0.23320739]
[1743911644035,0.60340477,83369.0,83368.0,0.2331987]
[1743911645836,0.60340477,83369.0,83368.0,0.23319641]
[1743911647230,0.51940887,83369.0,83368.0,0.23319641]
[1743911647632,0.51940887,83369.0,83368.0,0.23317686]
[1743911647828,0.10788887,83369.0,83368.0,0.23317686]
[1743911648131,0.19188477,83369.0,83368.0,0.23317686]
[1743911648333,0.10788887,83369.0,83368.0,0.20067686]
[1743911649133,0.0839959,83369.0,83368.0,0.28467276]
[1743911649542,0.0839959,83369.0,83368.0,0.28486354]
[1743911649543,0.1469959,83369.0,83368.0,0.28486354]
[1743911653038,0.1469959,83369.0,83368.0,0.28491834]
[1743911653432,0.10788887,83369.0,83368.0,0.50039268]
[1743911653637,0.10788887,83369.0,83368.0,0.53289268]
[1743911656829,0.10788887,83369.0,83368.0,0.53288567]
[1743911657238,0.3608,83372.0,83371.0,0.0839939]
[1743911657438,0.3608,83372.0,83371.0,0.10289485]
[1743911657639,0.3608,83372.0,83371.0,0.12004458]
[1743911658138,0.3608,83372.0,83371.0,0.18374458]
[1743911661532,0.35479929,83372.0,83371.0,0.18374458]
[1743911662744,0.38509929,83372.0,83371.0,0.18374458]
[1743911663138,0.0303,83372.0,83371.0,0.18374458]
[1743911669531,0.0303,83372.0,83371.0,0.16596363]
[1743911669743,0.0303,83372.0,83371.0,0.18373939]
[1743911671250,0.1142929,83372.0,83371.0,0.03604549]
[1743911671555,0.1454929,83372.0,83371.0,0.12003939]
[1743911671738,0.1757929,83372.0,83371.0,0.12003939]
[1743911673248,0.5365929,83372.0,83371.0,0.12003939]
[1743911675047,0.5365929,83372.0,83371.0,0.1199507]
[1743911676137,0.5365929,83372.0,83371.0,0.11994991]
[1743911676433,0.5365929,83372.0,83371.0,0.11882991]
[1743911676943,0.5365929,83372.0,83371.0,0.11990991]
[1743911677945,0.5365929,83372.0,83371.0,0.11991396]
[1743911679251,0.5365929,83372.0,83371.0,0.15111396]
[1743911689655,0.5365929,83372.0,83371.0,0.13342363]
[1743911689859,0.5365929,83372.0,83371.0,0.15105611]
[1743911690859,0.1757929,83372.0,83371.0,0.15105611]
[1743911691063,0.5365929,83372.0,83371.0,0.15105611]
[1743911691564,0.5365929,83372.0,83371.0,0.15105047]
[1743911693959,0.5053929,83372.0,83371.0,0.15105047]
[1743911694366,0.4750929,83372.0,83371.0,0.18215047]
[1743911695266,0.5067929,83372.0,83371.0,0.18215047]
[1743911696966,0.5067929,83372.0,83371.0,0.18223941]
[1743911697160,0.5067929,83372.0,83371.0,0.18224086]
[1743911697965,0.5067929,83372.0,83371.0,0.18223851]
[1743911700564,0.5067929,83372.0,83371.0,0.16452363]
[1743911700768,0.5067929,83372.0,83371.0,0.18226074]
[1743911702871,0.4955129,83372.0,83371.0,0.18226074]
[1743911703971,0.4955129,83372.0,83371.0,0.15116074]
[1743911704276,0.5599129,83372.0,83371.0,0.15116074]
[1743911704976,0.5599129,83372.0,83371.0,0.15105735]
[1743911705560,0.5599129,83372.0,83371.0,0.15105738]
[1743911707174,0.5599129,83372.0,83371.0,0.18245738]
[1743911707376,0.5599129,83372.0,83371.0,0.15105738]
[1743911707574,0.5899129,83372.0,83371.0,0.15105738]
[1743911708077,0.5899129,83372.0,83371.0,0.14997738]
[1743911708271,0.5599129,83372.0,83371.0,0.14997738]
[1743911708472,0.5599129,83372.0,83371.0,0.15105738]
[1743911710390,0.5599129,83372.0,83371.0,0.18425738]
[1743911710792,0.5091929,83372.0,83371.0,0.18425738]
[1743911711089,0.5599129,83372.0,83371.0,0.18425738]
[1743911712993,0.5599129,83372.0,83371.0,0.18411697]
[1743911713491,0.57791291,83372.0,83371.0,0.18411697]
[1743911713791,0.57791291,83372.0,83371.0,0.3998361]
[1743911717999,0.57791291,83372.0,83371.0,0.18411697]
[1743911718494,0.57791291,83372.0,83371.0,0.18409238]
[1743911721792,0.4955129,83372.0,83371.0,0.18409238]
[1743911727797,0.5267129,83372.0,83371.0,0.18409238]
[1743911728598,0.5267129,83372.0,83371.0,0.1842625]
[1743911731400,0.5267129,83372.0,83371.0,0.1843396]
[1743911733401,0.5267129,83372.0,83371.0,0.40000761]
[1743911735100,0.5267129,83372.0,83371.0,0.39999618]
[1743911735698,0.5578129,83372.0,83371.0,0.39999618]
[1743911736101,0.5578129,83372.0,83371.0,0.39998276]
[1743911736902,0.5578129,83372.0,83371.0,0.39993111]
[1743911737203,0.5578129,83372.0,83371.0,0.1842631]
[1743911741905,0.5578129,83372.0,83371.0,0.1510631]
[1743911744805,0.70180398,83372.0,83371.0,0.1510631]
[1743911749016,0.5578129,83372.0,83371.0,0.1510631]
[1743911749614,0.5578129,83372.0,83371.0,0.1508082]
[1743911751309,0.1970129,83372.0,83371.0,0.1508082]
[1743911751517,0.5578129,83372.0,83371.0,0.1508082]
[1743911751712,0.1970129,83372.0,83371.0,0.1508082]
[1743911752315,0.5578129,83372.0,83371.0,0.1508082]
[1743911753017,0.1970129,83372.0,83371.0,0.1508082]
[1743911753216,0.5578129,83372.0,83371.0,0.1508082]
[1743911759817,0.70181747,83372.0,83371.0,0.1508082]
[1743911760023,0.0839959,83369.0,83365.0,0.28728022]
[1743911760330,0.4447989,83366.0,83365.0,0.28728022]
[1743911761923,0.4447989,83366.0,83365.0,0.37128022]
[1743911762425,0.4447989,83366.0,83365.0,0.31878022]
[1743911764824,0.4447989,83366.0,83365.0,0.0315]
[1743911765025,0.4454389,83366.0,83365.0,0.0323]
[1743911765324,0.4454389,83366.0,83365.0,0.0315]
[1743911766524,0.4454389,83366.0,83365.0,0.1155]
[1743911770130,0.4961589,83366.0,83365.0,0.1465]
[1743911772030,0.4961589,83366.0,83365.0,0.16450747]
[1743911772226,0.4961589,83366.0,83365.0,0.16526747]
[1743911772426,0.4961589,83366.0,83365.0,0.16442747]
[1743911772836,0.4961589,83366.0,83365.0,0.18117184]
[1743911780039,0.4961589,83366.0,83365.0,0.18117554]
[1743911782939,0.4971589,83366.0,83365.0,0.18117554]
[1743911783440,0.4961589,83366.0,83365.0,0.18117554]
[1743911783630,0.4454389,83366.0,83365.0,0.18117554]
[1743911783940,0.4981589,83366.0,83365.0,0.18117554]
[1743911785839,0.4981589,83366.0,83365.0,0.18119191]
[1743911791137,0.5314589,83366.0,83365.0,0.18119191]
[1743911791346,0.5314589,83366.0,83365.0,0.18117912]
[1743911791645,0.5314589,83366.0,83365.0,0.18118861]
[1743911793048,0.5314589,83366.0,83365.0,0.18118032]
[1743911793942,0.5614589,83366.0,83365.0,0.18118032]
[1743911794744,0.5614589,83366.0,83365.0,0.06618032]
[1743911794948,0.5934589,83366.0,83365.0,0.03392857]
[1743911796348,0.5934589,83366.0,83365.0,0.11792857]
[1743911797745,0.5934589,83366.0,83365.0,0.14872857]
[1743911804050,0.5934589,83366.0,83365.0,0.14874609]
[1743911806052,0.5934589,83366.0,83365.0,0.14950609]
[1743911806243,0.5934589,83366.0,83365.0,0.14874609]
[1743911808754,0.5614589,83366.0,83365.0,0.14874609]
[1743911809153,0.5614589,83366.0,83365.0,0.14954609]
[1743911810359,0.5614589,83366.0,83365.0,0.18214609]
[1743911811353,0.5614589,83366.0,83365.0,0.1823236]
[1743911813156,0.57945891,83366.0,83365.0,0.1823236]
[1743911813455,0.57945891,83366.0,83365.0,0.18233597]
[1743911815054,0.57945891,83366.0,83365.0,0.18235073]
[1743911816957,0.57945891,83366.0,83365.0,0.1823505]
[1743911817157,0.54945891,83366.0,83365.0,0.1823505]
[1743911818764,0.54945891,83366.0,83365.0,0.18242069]
[1743911820458,0.54945891,83366.0,83365.0,0.16494724]
[1743911820663,0.54945891,83366.0,83365.0,0.1824353]
[1743911821263,0.54845891,83366.0,83365.0,0.1824353]
[1743911821764,0.6924244,83366.0,83365.0,0.18245389]
[1743911822764,0.6914244,83366.0,83365.0,0.18245389]
[1743911822966,0.6924244,83366.0,83365.0,0.18245389]
[1743911825065,0.54845891,83366.0,83365.0,0.18245389]
[1743911825569,0.54845891,83366.0,83365.0,0.18243988]
[1743911828057,0.6924244,83366.0,83365.0,0.18243988]
[1743911829970,0.3316244,83366.0,83365.0,0.18243988]
[1743911830166,0.6924244,83366.0,83365.0,0.18243988]
[1743911830873,0.3316244,83366.0,83365.0,0.18243988]
[1743911831063,0.6924244,83366.0,83365.0,0.18248723]
[1743911832880,0.67442439,83366.0,83365.0,0.18248723]
[1743911833072,0.70722439,83366.0,83365.0,0.18248723]
[1743911833474,0.7252244,83366.0,83365.0,0.18248723]
[1743911834676,0.7252244,83366.0,83365.0,0.18250369]
[1743911836577,0.3644244,83366.0,83365.0,0.18250369]
[1743911836779,0.7252244,83366.0,83365.0,0.18250369]
[1743911837374,0.3644244,83366.0,83365.0,0.18250369]
[1743911837572,0.7252244,83366.0,83365.0,0.18250369]
[1743911838279,0.7252244,83366.0,83365.0,0.18250484]
[1743911838880,0.3644244,83366.0,83365.0,0.18250484]
[1743911839179,0.7252244,83366.0,83365.0,0.18250484]
[1743911840183,0.7252244,83366.0,83365.0,0.16494724]
[1743911840390,0.7252244,83366.0,83365.0,0.18252385]
[1743911840978,0.7252244,83366.0,83365.0,0.14992385]
[1743911841180,0.7583244,83366.0,83365.0,0.14992385]
[1743911841779,0.7583244,83366.0,83365.0,0.06592385]
[1743911841984,0.7583244,83366.0,83365.0,1e-08]
[1743911842172,0.084004,83362.0,83361.0,0.0840033]
[1743911842372,0.444804,83362.0,83361.0,0.0840033]
[1743911842572,0.507004,83362.0,83361.0,0.0840033]
[1743911846979,0.507644,83362.0,83361.0,0.0846433]
[1743911847182,0.507644,83362.0,83361.0,0.0840033]
[1743911848576,0.084004,83361.0,83360.0,0.03108]
[1743911848768,0.084644,83361.0,83360.0,0.03108]
[1743911848972,0.150144,83361.0,83360.0,0.03108]
[1743911849169,0.150144,83361.0,83360.0,0.115085]
[1743911849781,0.150144,83361.0,83360.0,0.147785]
[1743911851384,0.29401625,83361.0,83360.0,0.147785]
[1743911853878,0.29401625,83361.0,83360.0,0.16536359]
[1743911854080,0.29401625,83361.0,83360.0,0.16596359]
[1743911854477,0.150144,83361.0,83360.0,0.16596359]
[1743911854780,0.150144,83361.0,83360.0,0.18293345]
[1743911858589,0.510944,83361.0,83360.0,0.18292521]
[1743911860191,0.510944,83361.0,83360.0,0.21362521]
[1743911860386,0.510944,83361.0,83360.0,0.2136591]
[1743911864692,0.150144,83361.0,83360.0,0.2136591]
[1743911864890,0.510944,83361.0,83360.0,0.2136591]
[1743911867595,0.150144,83361.0,83360.0,0.2136591]
[1743911867794,0.510944,83361.0,83360.0,0.2136591]
[1743911869394,0.150144,83361.0,83360.0,0.2136591]
[1743911869593,0.510944,83361.0,83360.0,0.2136591]
[1743911871094,0.150144,83361.0,83360.0,0.2136591]
[1743911871496,0.510944,83361.0,83360.0,0.2136591]
[1743911872794,0.150144,83361.0,83360.0,0.2136591]
[1743911872994,0.65481625,83361.0,83360.0,0.2136591]
[1743911873293,0.65481625,83361.0,83360.0,0.2130591]
[1743911873884,0.65481625,83361.0,83360.0,0.2129791]
[1743911875893,0.29401625,83361.0,83360.0,0.2129791]
[1743911876200,0.510944,83361.0,83360.0,0.2136191]
[1743911881596,0.510944,83361.0,83360.0,0.19601486]
[1743911881802,0.510944,83361.0,83360.0,0.21362138]
[1743911884702,0.150144,83361.0,83360.0,0.21362138]
[1743911884904,0.510944,83361.0,83360.0,0.21362138]
[1743911887096,0.510944,83361.0,83360.0,0.42967654]
[1743911892607,0.510944,83361.0,83360.0,0.42976676]
[1743911894008,0.65489343,83361.0,83360.0,0.42976676]
[1743911896213,0.65489343,83361.0,83360.0,0.42977224]
[1743911900720,0.65489343,83361.0,83360.0,0.41207002]
[1743911901118,0.65489343,83361.0,83360.0,0.42983224]
[1743911901310,0.65489343,83361.0,83360.0,0.42984135]
[1743911901621,0.65489343,83361.0,83360.0,0.42984122]
[1743911902020,0.65489343,83361.0,83360.0,0.4298413]
[1743911902321,0.29409343,83361.0,83360.0,0.4298413]
[1743911902619,0.65489343,83361.0,83360.0,0.42984634]
[1743911903814,0.65489343,83361.0,83360.0,0.41207002]
[1743911904020,0.65489343,83361.0,83360.0,0.42976682]
[1743911904320,0.29409343,83361.0,83360.0,0.42976682]
[1743911904923,0.65489343,83361.0,83360.0,0.42976682]
[1743911905917,0.64889142,83361.0,83360.0,0.42976682]
[1743911906114,0.28809142,83361.0,83360.0,0.42976682]
[1743911906311,0.64889142,83361.0,83360.0,0.42976682]
[1743911907221,0.28809142,83361.0,83360.0,0.42978075]
[1743911907524,0.64889142,83361.0,83360.0,0.42978075]
[1743911912821,0.50494199,83361.0,83360.0,0.42978075]
[1743911913315,0.14414199,83361.0,83360.0,0.42978075]
[1743911913523,0.50494199,83361.0,83360.0,0.42978075]
[1743911913717,0.14414199,83361.0,83360.0,0.42978075]
[1743911913917,0.50494199,83361.0,83360.0,0.42978075]
[1743911914622,0.14414199,83361.0,83360.0,0.42978075]
[1743911914822,0.50494199,83361.0,83360.0,0.42978075]
[1743911915023,0.14414199,83361.0,83360.0,0.42978075]
[1743911915222,0.50494199,83361.0,83360.0,0.42978075]
[1743911916618,0.14414199,83361.0,83360.0,0.42978075]
[1743911916925,0.50494199,83361.0,83360.0,0.42978075]
[1743911917719,0.14414199,83361.0,83360.0,0.42978075]
[1743911918020,0.50494199,83361.0,83360.0,0.42978075]
[1743911918426,0.50494199,83361.0,83360.0,0.41207002]
[1743911918629,0.50494199,83361.0,83360.0,0.4298179]
[1743911921129,0.14414199,83361.0,83360.0,0.4298179]
[1743911921333,0.50494199,83361.0,83360.0,0.4298179]
[1743911922534,0.64891292,83361.0,83360.0,0.21376274]
[1743911923534,0.64891292,83361.0,83360.0,0.18306274]